[Event "Late-Titled-Tuesday-Blitz-November-28-2023"]
[Site "Chess.com"]
[Date "2023.11.28"]
[Round "10"]
[White "TrenerChos"]
[Black "OneTrickPony_82"]
[Result "1-0"]
[WhiteElo "2604"]
[BlackElo "2480"]
[TimeControl "180+1"]
[EndTime "15:52:29 PST"]
[Termination "TrenerChos won on time"]

1. e4 {[%clk 0:03:00.9]} 1... e5 {[%clk 0:03:00]} 2. b3 {[%clk 0:03:00.8]} 2...
Nf6 {[%clk 0:02:58.7]} 3. Bb2 {[%clk 0:03:01.3]} 3... Nxe4 {[%clk 0:02:53.3]} 4.
Qe2 {[%clk 0:03:01.6]} 4... d5 {[%clk 0:02:22.2]} 5. d3 {[%clk 0:03:00.5]} 5...
Nf6 {[%clk 0:02:17.9]} 6. Qxe5+ {[%clk 0:02:57.4]} 6... Qe7 {[%clk 0:02:16.3]}
7. Nf3 {[%clk 0:02:55.2]} 7... Nc6 {[%clk 0:02:15.3]} 8. Qxe7+ {[%clk
0:02:53.3]} 8... Bxe7 {[%clk 0:02:16.2]} 9. Be2 {[%clk 0:02:50.8]} 9... Nb4
{[%clk 0:02:11.9]} 10. Na3 {[%clk 0:02:47.6]} 10... O-O {[%clk 0:02:03.8]} 11.
O-O {[%clk 0:02:44.2]} 11... c6 {[%clk 0:01:53.4]} 12. Rfe1 {[%clk 0:02:40.7]}
12... Re8 {[%clk 0:01:48]} 13. c3 {[%clk 0:02:37.9]} 13... Na6 {[%clk
0:01:46.6]} 14. d4 {[%clk 0:02:38.3]} 14... Bf5 {[%clk 0:01:44.4]} 15. Ne5
{[%clk 0:02:38.5]} 15... Nc7 {[%clk 0:01:42]} 16. c4 {[%clk 0:02:37.7]} 16...
Bb4 {[%clk 0:01:31.3]} 17. Red1 {[%clk 0:02:36.5]} 17... Ne4 {[%clk 0:01:30]}
18. Nc2 {[%clk 0:02:35]} 18... Bc3 {[%clk 0:01:28]} 19. Rab1 {[%clk 0:02:17.1]}
19... Bxb2 {[%clk 0:01:27.4]} 20. Rxb2 {[%clk 0:02:17.5]} 20... Nc3 {[%clk
0:01:28]} 21. Re1 {[%clk 0:02:05]} 21... Nxe2+ {[%clk 0:01:20.4]} 22. Rxe2
{[%clk 0:02:03.1]} 22... f6 {[%clk 0:01:20.9]} 23. Ne3 {[%clk 0:02:00.7]} 23...
Be4 {[%clk 0:00:59.4]} 24. Nd7 {[%clk 0:01:57.4]} 24... b6 {[%clk 0:00:48.4]}
25. Ng4 {[%clk 0:01:47.5]} 25... Kf7 {[%clk 0:00:35.1]} 26. cxd5 {[%clk
0:01:46.4]} 26... Bxd5 {[%clk 0:00:23.7]} 27. f3 {[%clk 0:00:58.7]} 27... Rad8
{[%clk 0:00:20.9]} 28. Rxe8 {[%clk 0:00:56.4]} 28... Kxe8 {[%clk 0:00:19.8]} 29.
Ndxf6+ {[%clk 0:00:56.3]} 29... gxf6 {[%clk 0:00:20.3]} 30. Nxf6+ {[%clk
0:00:57.2]} 30... Kf7 {[%clk 0:00:20.5]} 31. Nxh7 {[%clk 0:00:57.7]} 31... Kg6
{[%clk 0:00:19.5]} 32. Re2 {[%clk 0:00:56.7]} 32... Ne6 {[%clk 0:00:14.4]} 33.
f4 {[%clk 0:00:47.8]} 33... Kxh7 {[%clk 0:00:14.6]} 34. f5 {[%clk 0:00:47.1]}
34... Nxd4 {[%clk 0:00:14.8]} 35. Re7+ {[%clk 0:00:46]} 35... Kh6 {[%clk
0:00:14.9]} 36. g4 {[%clk 0:00:39]} 36... Nf3+ {[%clk 0:00:14.9]} 37. Kf2 {[%clk
0:00:35.5]} 37... Kg5 {[%clk 0:00:15.6]} 38. Kg3 {[%clk 0:00:33.9]} 38... Kf6
{[%clk 0:00:15.5]} 39. Rh7 {[%clk 0:00:31.9]} 39... Rg8 {[%clk 0:00:14.6]} 40.
Kf4 {[%clk 0:00:26]} 40... Bf7 {[%clk 0:00:12.6]} 41. h4 {[%clk 0:00:24.3]}
41... Ke7 {[%clk 0:00:11.4]} 42. Kxf3 {[%clk 0:00:21.9]} 42... Kf8 {[%clk
0:00:08.9]} 43. g5 {[%clk 0:00:20.3]} 43... a5 {[%clk 0:00:08.3]} 44. Kf4 {[%clk
0:00:20.4]} 44... Rg7 {[%clk 0:00:07.5]} 45. Rh6 {[%clk 0:00:19.4]} 45... Bd5
{[%clk 0:00:06.9]} 46. h5 {[%clk 0:00:18.8]} 46... Re7 {[%clk 0:00:07]} 47. f6
{[%clk 0:00:18.2]} 47... Re2 {[%clk 0:00:05]} 48. Rh8+ {[%clk 0:00:12.6]} 48...
Kf7 {[%clk 0:00:04.9]} 49. Rh7+ {[%clk 0:00:13.5]} 49... Kf8 {[%clk 0:00:04.7]}
50. Rg7 {[%clk 0:00:14.2]} 50... Rxa2 {[%clk 0:00:02.5]} 51. Ke5 {[%clk
0:00:15.1]} 51... Re2+ {[%clk 0:00:01.7]} 52. Kd6 {[%clk 0:00:16]} 1-0

[Event "Late-Titled-Tuesday-Blitz-November-28-2023"]
[Site "Chess.com"]
[Date "2023.11.28"]
[Round "10"]
[White "Goffredo_Fofi"]
[Black "Dr_crypt"]
[Result "0-1"]
[WhiteElo "2504"]
[BlackElo "2414"]
[TimeControl "180+1"]
[EndTime "15:52:37 PST"]
[Termination "Dr_crypt won on time"]

1. e4 {[%clk 0:03:00.9]} 1... d5 {[%clk 0:02:56.9]} 2. exd5 {[%clk 0:03:01.1]}
2... Qxd5 {[%clk 0:02:57.8]} 3. Nc3 {[%clk 0:03:01.7]} 3... Qd6 {[%clk 0:02:58]}
4. d4 {[%clk 0:03:01.5]} 4... c6 {[%clk 0:02:57.4]} 5. g3 {[%clk 0:03:00.8]}
5... Bf5 {[%clk 0:02:54.9]} 6. Nge2 {[%clk 0:02:56.2]} 6... e6 {[%clk
0:02:53.5]} 7. Bf4 {[%clk 0:02:54.6]} 7... Qd8 {[%clk 0:02:53.4]} 8. Bg2 {[%clk
0:02:54.1]} 8... Nf6 {[%clk 0:02:53.6]} 9. O-O {[%clk 0:02:53.1]} 9... Nbd7
{[%clk 0:02:53.1]} 10. h3 {[%clk 0:02:49]} 10... Nd5 {[%clk 0:02:51.8]} 11. Nxd5
{[%clk 0:02:40]} 11... cxd5 {[%clk 0:02:50.7]} 12. c3 {[%clk 0:02:37.8]} 12...
Rc8 {[%clk 0:02:47.4]} 13. Nc1 {[%clk 0:02:37.5]} 13... Nb6 {[%clk 0:02:44.2]}
14. Re1 {[%clk 0:02:25.5]} 14... Bd6 {[%clk 0:02:42.9]} 15. Bxd6 {[%clk
0:02:22]} 15... Qxd6 {[%clk 0:02:43]} 16. Nd3 {[%clk 0:02:10.5]} 16... Bxd3
{[%clk 0:02:42.6]} 17. Qxd3 {[%clk 0:02:10.1]} 17... O-O {[%clk 0:02:43.5]} 18.
Re2 {[%clk 0:02:08.4]} 18... Nc4 {[%clk 0:02:38.3]} 19. Rae1 {[%clk 0:02:05.1]}
19... b5 {[%clk 0:02:37.5]} 20. b3 {[%clk 0:01:31]} 20... Nb6 {[%clk 0:02:36.7]}
21. Rc2 {[%clk 0:01:30.2]} 21... Qd7 {[%clk 0:02:26.3]} 22. Bf1 {[%clk
0:01:28.5]} 22... a6 {[%clk 0:02:24.9]} 23. Rec1 {[%clk 0:01:18]} 23... Rc6
{[%clk 0:02:19.5]} 24. Qd2 {[%clk 0:01:11.9]} 24... Rfc8 {[%clk 0:02:17.8]} 25.
Bd3 {[%clk 0:01:10.9]} 25... g6 {[%clk 0:02:17.2]} 26. h4 {[%clk 0:01:09.9]}
26... h5 {[%clk 0:01:47.3]} 27. Qg5 {[%clk 0:01:09.4]} 27... Qd8 {[%clk
0:01:42.6]} 28. Qd2 {[%clk 0:01:00.9]} 28... Kg7 {[%clk 0:01:41.7]} 29. Kg2
{[%clk 0:00:59.5]} 29... R8c7 {[%clk 0:01:36.7]} 30. Qe3 {[%clk 0:00:53.8]}
30... Nc8 {[%clk 0:01:35.9]} 31. Be2 {[%clk 0:00:44.3]} 31... Nd6 {[%clk
0:01:34.8]} 32. Bf3 {[%clk 0:00:43.9]} 32... Qf6 {[%clk 0:01:20]} 33. Qd3 {[%clk
0:00:36.1]} 33... Rc8 {[%clk 0:01:16.3]} 34. Qe3 {[%clk 0:00:24.2]} 34... R6c7
{[%clk 0:01:16.1]} 35. Qd3 {[%clk 0:00:24.4]} 35... a5 {[%clk 0:01:15.7]} 36. a3
{[%clk 0:00:23.6]} 36... b4 {[%clk 0:01:14.6]} 37. axb4 {[%clk 0:00:22.8]} 37...
axb4 {[%clk 0:01:14.8]} 38. c4 {[%clk 0:00:21.1]} 38... Nf5 {[%clk 0:01:08.4]}
39. Rd1 {[%clk 0:00:21.4]} 39... dxc4 {[%clk 0:01:06.7]} 40. bxc4 {[%clk
0:00:22.3]} 40... b3 {[%clk 0:01:07.3]} 41. Rc3 {[%clk 0:00:19.9]} 41... b2
{[%clk 0:01:06.8]} 42. Be4 {[%clk 0:00:19]} 42... Nxd4 {[%clk 0:01:03.8]} 43.
Qxd4 {[%clk 0:00:18.2]} 43... Qxd4 {[%clk 0:01:02.8]} 44. Rxd4 {[%clk
0:00:19.1]} 44... e5 {[%clk 0:00:59.8]} 45. Rd1 {[%clk 0:00:19]} 45... Rxc4
{[%clk 0:00:59.9]} 46. Rxc4 {[%clk 0:00:18.1]} 46... Rxc4 {[%clk 0:01:00.8]} 47.
Kf3 {[%clk 0:00:13]} 47... f5 {[%clk 0:00:58.2]} 48. Bb1 {[%clk 0:00:10.4]}
48... Rc1 {[%clk 0:00:52.9]} 49. Ke2 {[%clk 0:00:10.7]} 49... Kf6 {[%clk
0:00:52.4]} 50. Kd2 {[%clk 0:00:11]} 50... Rc7 {[%clk 0:00:50.9]} 51. Bc2 {[%clk
0:00:10.8]} 51... g5 {[%clk 0:00:48.2]} 52. hxg5+ {[%clk 0:00:07.7]} 52... Kxg5
{[%clk 0:00:49.1]} 53. Rb1 {[%clk 0:00:07.8]} 53... Rb7 {[%clk 0:00:48.3]} 54.
Kc3 {[%clk 0:00:08.2]} 54... f4 {[%clk 0:00:46.1]} 55. gxf4+ {[%clk 0:00:05.4]}
55... Kxf4 {[%clk 0:00:44.7]} 56. Bd1 {[%clk 0:00:05.7]} 56... h4 {[%clk
0:00:44.5]} 57. Rxb2 {[%clk 0:00:02.3]} 57... Rxb2 {[%clk 0:00:44.3]} 58. Kxb2
{[%clk 0:00:03.2]} 58... h3 {[%clk 0:00:44.8]} 59. Ba4 {[%clk 0:00:03.7]} 59...
h2 {[%clk 0:00:43.8]} 60. Bc6 {[%clk 0:00:03.6]} 60... e4 {[%clk 0:00:44.3]} 61.
f3 {[%clk 0:00:03.4]} 61... exf3 {[%clk 0:00:43.3]} 0-1

[Event "Late-Titled-Tuesday-Blitz-November-28-2023"]
[Site "Chess.com"]
[Date "2023.11.28"]
[Round "10"]
[White "rasmussvane"]
[Black "Hrant_ChessMood"]
[Result "1-0"]
[WhiteElo "2962"]
[BlackElo "2921"]
[TimeControl "180+1"]
[EndTime "15:52:42 PST"]
[Termination "rasmussvane won on time"]

1. Nf3 {[%clk 0:02:57.7]} 1... c5 {[%clk 0:02:58.2]} 2. g3 {[%clk 0:02:49.1]}
2... Nc6 {[%clk 0:02:57]} 3. c4 {[%clk 0:02:46.7]} 3... g6 {[%clk 0:02:50.4]} 4.
Bg2 {[%clk 0:02:46.5]} 4... Bg7 {[%clk 0:02:49.4]} 5. O-O {[%clk 0:02:45.2]}
5... Nf6 {[%clk 0:02:42.4]} 6. d4 {[%clk 0:02:42.4]} 6... cxd4 {[%clk
0:02:43.3]} 7. Nxd4 {[%clk 0:02:43]} 7... O-O {[%clk 0:02:42.8]} 8. Nc3 {[%clk
0:02:43.4]} 8... d6 {[%clk 0:02:41.9]} 9. b3 {[%clk 0:02:29.6]} 9... Bd7 {[%clk
0:02:39.3]} 10. Bb2 {[%clk 0:02:28.6]} 10... Qa5 {[%clk 0:02:39.3]} 11. Rc1
{[%clk 0:02:27.5]} 11... Rfc8 {[%clk 0:02:38.8]} 12. e3 {[%clk 0:02:26.1]} 12...
Rab8 {[%clk 0:02:36.4]} 13. Qe2 {[%clk 0:02:25.8]} 13... a6 {[%clk 0:02:36.4]}
14. Rfd1 {[%clk 0:02:18.8]} 14... Bg4 {[%clk 0:02:31]} 15. Bf3 {[%clk
0:02:15.8]} 15... Qh5 {[%clk 0:02:26.4]} 16. Bxg4 {[%clk 0:01:57]} 16... Nxg4
{[%clk 0:02:27.3]} 17. f3 {[%clk 0:01:55.6]} 17... Nf6 {[%clk 0:02:13.6]} 18.
Kg2 {[%clk 0:01:53.8]} 18... Qa5 {[%clk 0:02:06.3]} 19. Ba1 {[%clk 0:01:32.2]}
19... Qd8 {[%clk 0:01:57.3]} 20. e4 {[%clk 0:01:25.4]} 20... Nxd4 {[%clk
0:01:51.6]} 21. Rxd4 {[%clk 0:01:26.3]} 21... b5 {[%clk 0:01:52.2]} 22. cxb5
{[%clk 0:01:05.3]} 22... axb5 {[%clk 0:01:51.4]} 23. Rdd1 {[%clk 0:00:43]} 23...
Qa5 {[%clk 0:01:51]} 24. Nd5 {[%clk 0:00:37.9]} 24... Nxd5 {[%clk 0:01:37.6]}
25. exd5 {[%clk 0:00:25.6]} 25... Bxa1 {[%clk 0:01:36.7]} 26. Rxa1 {[%clk
0:00:22.7]} 26... Rc7 {[%clk 0:01:33.3]} 27. Rac1 {[%clk 0:00:21.9]} 27... Rbc8
{[%clk 0:01:28.1]} 28. Rxc7 {[%clk 0:00:22]} 28... Rxc7 {[%clk 0:01:29]} 29. Rd4
{[%clk 0:00:18.9]} 29... b4 {[%clk 0:01:18.3]} 30. h4 {[%clk 0:00:13.8]} 30...
Ra7 {[%clk 0:01:06.6]} 31. Kh3 {[%clk 0:00:13.2]} 31... Qxa2 {[%clk 0:01:02.6]}
32. Qxa2 {[%clk 0:00:11.9]} 32... Rxa2 {[%clk 0:01:03.5]} 33. Rxb4 {[%clk
0:00:12.3]} 33... Rd2 {[%clk 0:01:04.1]} 34. Rb7 {[%clk 0:00:11.9]} 34... Kf8
{[%clk 0:01:02.2]} 35. Rb5 {[%clk 0:00:11.8]} 35... h5 {[%clk 0:01:02.5]} 36. g4
{[%clk 0:00:11.9]} 36... hxg4+ {[%clk 0:00:52.4]} 37. fxg4 {[%clk 0:00:10.9]}
37... Rd3+ {[%clk 0:00:52]} 38. Kg2 {[%clk 0:00:11]} 38... Kg7 {[%clk
0:00:52.4]} 39. g5 {[%clk 0:00:11.4]} 39... f6 {[%clk 0:00:45.7]} 40. gxf6+
{[%clk 0:00:10.1]} 40... Kxf6 {[%clk 0:00:46.6]} 41. Kh2 {[%clk 0:00:07.4]}
41... Kf5 {[%clk 0:00:41.3]} 42. Rb7 {[%clk 0:00:06.8]} 42... Re3 {[%clk
0:00:41.9]} 43. Kg2 {[%clk 0:00:05.3]} 43... Kf4 {[%clk 0:00:38.9]} 44. Kf2
{[%clk 0:00:03.1]} 44... Re4 {[%clk 0:00:31.4]} 45. b4 {[%clk 0:00:03.2]} 45...
Kf5 {[%clk 0:00:19.9]} 46. b5 {[%clk 0:00:03.5]} 46... Kf6 {[%clk 0:00:20.3]}
47. b6 {[%clk 0:00:03.9]} 47... Re5 {[%clk 0:00:19]} 48. Rb8 {[%clk 0:00:02.7]}
48... Rf5+ {[%clk 0:00:16.7]} 49. Kg3 {[%clk 0:00:02.9]} 49... Rxd5 {[%clk
0:00:05.1]} 50. b7 {[%clk 0:00:03.4]} 50... Rd3+ {[%clk 0:00:04.8]} 51. Kf2
{[%clk 0:00:03.5]} 51... Rb3 {[%clk 0:00:02]} 52. Rf8+ {[%clk 0:00:03.9]} 1-0

[Event "Late-Titled-Tuesday-Blitz-November-28-2023"]
[Site "Chess.com"]
[Date "2023.11.28"]
[Round "10"]
[White "TreinadorBR"]
[Black "C_K_G"]
[Result "1/2-1/2"]
[WhiteElo "2345"]
[BlackElo "2185"]
[TimeControl "180+1"]
[EndTime "15:52:55 PST"]
[Termination "Game drawn by repetition"]

1. e4 {[%clk 0:03:00.9]} 1... c5 {[%clk 0:02:57.8]} 2. Nf3 {[%clk 0:03:00.8]}
2... d6 {[%clk 0:02:57.4]} 3. d4 {[%clk 0:03:01.3]} 3... cxd4 {[%clk 0:02:57.9]}
4. Nxd4 {[%clk 0:03:02.2]} 4... Nf6 {[%clk 0:02:58.3]} 5. Nc3 {[%clk 0:03:02.8]}
5... a6 {[%clk 0:02:58.8]} 6. Bg5 {[%clk 0:03:02.2]} 6... e6 {[%clk 0:02:58.1]}
7. Qd2 {[%clk 0:03:02.1]} 7... Be7 {[%clk 0:02:58.5]} 8. f3 {[%clk 0:03:02.7]}
8... O-O {[%clk 0:02:58.1]} 9. Be3 {[%clk 0:03:03.2]} 9... Nbd7 {[%clk
0:02:58.1]} 10. O-O-O {[%clk 0:03:03.9]} 10... Qc7 {[%clk 0:02:57.1]} 11. Kb1
{[%clk 0:03:04.4]} 11... b5 {[%clk 0:02:57.4]} 12. g4 {[%clk 0:03:05.1]} 12...
Rb8 {[%clk 0:02:49.1]} 13. g5 {[%clk 0:03:05.6]} 13... Nh5 {[%clk 0:02:48.3]}
14. Nce2 {[%clk 0:03:05.8]} 14... Nb6 {[%clk 0:02:46.4]} 15. Ng3 {[%clk
0:03:06.4]} 15... Nc4 {[%clk 0:02:46.1]} 16. Bxc4 {[%clk 0:03:00.2]} 16... bxc4
{[%clk 0:02:45.7]} 17. c3 {[%clk 0:03:00.7]} 17... g6 {[%clk 0:02:42.7]} 18.
Nxh5 {[%clk 0:03:00]} 18... gxh5 {[%clk 0:02:43.1]} 19. f4 {[%clk 0:02:59.1]}
19... d5 {[%clk 0:02:38.3]} 20. e5 {[%clk 0:02:57.9]} 20... Ba3 {[%clk 0:02:38]}
21. Nb3 {[%clk 0:02:40.6]} 21... cxb3 {[%clk 0:02:26.2]} 22. bxa3 {[%clk
0:02:40.8]} 22... bxa2+ {[%clk 0:02:25.8]} 23. Ka1 {[%clk 0:02:40.5]} 23... Rb3
{[%clk 0:02:19.4]} 24. Kxa2 {[%clk 0:02:32.8]} 24... Qc4 {[%clk 0:01:35.4]} 25.
Qd4 {[%clk 0:02:30.7]} 25... Rxc3+ {[%clk 0:01:16.7]} 26. Qxc4 {[%clk
0:02:30.4]} 26... Rxc4 {[%clk 0:01:16.6]} 27. Rc1 {[%clk 0:02:29.5]} 27... Re4
{[%clk 0:01:15.8]} 28. Bc5 {[%clk 0:02:26.1]} 28... Rd8 {[%clk 0:01:10.6]} 29.
Be7 {[%clk 0:02:24.2]} 29... Re8 {[%clk 0:01:10.2]} 30. Bf6 {[%clk 0:02:22.9]}
30... Bd7 {[%clk 0:01:08]} 31. Rc7 {[%clk 0:02:13.9]} 31... Bb5 {[%clk
0:01:07.8]} 32. Rhc1 {[%clk 0:02:13.7]} 32... Bc4+ {[%clk 0:01:07.9]} 33. Kb2
{[%clk 0:02:09.4]} 33... Rxf4 {[%clk 0:01:08.2]} 34. Rb7 {[%clk 0:02:02.8]}
34... Rf2+ {[%clk 0:00:57.1]} 35. Rc2 {[%clk 0:02:03.3]} 35... Rxc2+ {[%clk
0:00:54.6]} 36. Kxc2 {[%clk 0:02:04.2]} 36... Rf8 {[%clk 0:00:47]} 37. Be7
{[%clk 0:01:59.2]} 37... Re8 {[%clk 0:00:46.1]} 38. Bf6 {[%clk 0:01:58.8]} 38...
h4 {[%clk 0:00:45.2]} 39. Kc3 {[%clk 0:01:54.5]} 39... h3 {[%clk 0:00:45.1]} 40.
Kd4 {[%clk 0:01:53.2]} 40... Rc8 {[%clk 0:00:44.5]} 41. Ke3 {[%clk 0:01:40.9]}
41... Bb5 {[%clk 0:00:41.7]} 42. Kf4 {[%clk 0:01:33.1]} 42... Bd3 {[%clk
0:00:35.9]} 43. Ra7 {[%clk 0:01:26.7]} 43... Bg6 {[%clk 0:00:31.3]} 44. Rxa6
{[%clk 0:01:25.3]} 44... Rc4+ {[%clk 0:00:20.6]} 45. Ke3 {[%clk 0:01:23.1]}
45... Rc3+ {[%clk 0:00:19.6]} 46. Kd4 {[%clk 0:01:22.8]} 46... Rc4+ {[%clk
0:00:19.9]} 47. Ke3 {[%clk 0:01:20.9]} 47... h6 {[%clk 0:00:20.2]} 48. gxh6
{[%clk 0:01:20.2]} 48... Kh7 {[%clk 0:00:20.6]} 49. Bg7 {[%clk 0:01:19.5]} 49...
Bh5 {[%clk 0:00:20.1]} 50. Ra8 {[%clk 0:01:16.4]} 50... Kg6 {[%clk 0:00:19.6]}
51. Rg8 {[%clk 0:01:14.4]} 51... Kh7 {[%clk 0:00:18.6]} 52. Ra8 {[%clk
0:01:13.2]} 52... Kg6 {[%clk 0:00:17.3]} 53. a4 {[%clk 0:01:13.1]} 53... Rc2
{[%clk 0:00:16.6]} 54. a5 {[%clk 0:01:01.5]} 54... Rxh2 {[%clk 0:00:16.3]} 55.
Bf6 {[%clk 0:00:56.7]} 55... Ra2 {[%clk 0:00:15.8]} 56. h7 {[%clk 0:00:40.1]}
56... Kxh7 {[%clk 0:00:15.9]} 57. Kf4 {[%clk 0:00:36.1]} 57... h2 {[%clk
0:00:15.4]} 58. Rh8+ {[%clk 0:00:30.2]} 58... Kg6 {[%clk 0:00:15.6]} 59. Rg8+
{[%clk 0:00:30.3]} 59... Kh6 {[%clk 0:00:15.7]} 60. Rh8+ {[%clk 0:00:23.1]}
60... Kg6 {[%clk 0:00:15.5]} 61. Rg8+ {[%clk 0:00:16.6]} 61... Kh7 {[%clk
0:00:14.8]} 62. Rh8+ {[%clk 0:00:11.3]} 62... Kg6 {[%clk 0:00:14.6]} 1/2-1/2

[Event "Late-Titled-Tuesday-Blitz-November-28-2023"]
[Site "Chess.com"]
[Date "2023.11.28"]
[Round "10"]
[White "KNVB"]
[Black "Hypercar"]
[Result "1-0"]
[WhiteElo "2670"]
[BlackElo "2528"]
[TimeControl "180+1"]
[EndTime "15:53:04 PST"]
[Termination "KNVB won by checkmate"]

1. e4 {[%clk 0:03:00.9]} 1... c5 {[%clk 0:02:57.8]} 2. h4 {[%clk 0:02:56.8]}
2... Nc6 {[%clk 0:02:56.5]} 3. d3 {[%clk 0:02:56.1]} 3... d6 {[%clk 0:02:49.8]}
4. h5 {[%clk 0:02:53.6]} 4... Nf6 {[%clk 0:02:47.9]} 5. h6 {[%clk 0:02:53.1]}
5... g6 {[%clk 0:02:46.8]} 6. Nf3 {[%clk 0:02:48.6]} 6... Bg4 {[%clk 0:02:25.3]}
7. Be2 {[%clk 0:02:48.1]} 7... Bxf3 {[%clk 0:02:24]} 8. Bxf3 {[%clk 0:02:49]}
8... Qd7 {[%clk 0:02:23.3]} 9. c3 {[%clk 0:02:44.4]} 9... O-O-O {[%clk
0:02:21.4]} 10. g4 {[%clk 0:02:39.5]} 10... e6 {[%clk 0:02:11.5]} 11. g5 {[%clk
0:02:37.9]} 11... Ne8 {[%clk 0:02:10.9]} 12. Bg4 {[%clk 0:02:36.8]} 12... Kb8
{[%clk 0:02:10.5]} 13. f4 {[%clk 0:02:34.9]} 13... Nc7 {[%clk 0:02:09.4]} 14.
Nd2 {[%clk 0:02:31.6]} 14... Be7 {[%clk 0:02:07.9]} 15. Nf3 {[%clk 0:02:29.8]}
15... d5 {[%clk 0:02:05.9]} 16. e5 {[%clk 0:02:12.9]} 16... d4 {[%clk
0:01:46.8]} 17. c4 {[%clk 0:02:12.9]} 17... a6 {[%clk 0:01:36.6]} 18. O-O {[%clk
0:02:09.3]} 18... Nb4 {[%clk 0:01:27.8]} 19. a3 {[%clk 0:02:08.1]} 19... Nc6
{[%clk 0:01:27.8]} 20. Bh3 {[%clk 0:01:58.2]} 20... a5 {[%clk 0:01:27.8]} 21.
Bg2 {[%clk 0:01:54.7]} 21... Na6 {[%clk 0:01:28]} 22. Bd2 {[%clk 0:01:44.8]}
22... Kc7 {[%clk 0:01:23.4]} 23. Be1 {[%clk 0:01:40.2]} 23... Ra8 {[%clk
0:01:22.1]} 24. Nd2 {[%clk 0:01:39.9]} 24... Rhc8 {[%clk 0:01:17.1]} 25. Ne4
{[%clk 0:01:36.6]} 25... b6 {[%clk 0:01:13.6]} 26. Bg3 {[%clk 0:01:29.7]} 26...
Kd8 {[%clk 0:01:12.2]} 27. Kh2 {[%clk 0:01:26.7]} 27... Ke8 {[%clk 0:01:09.1]}
28. Bf3 {[%clk 0:01:24.8]} 28... Kf8 {[%clk 0:01:06.3]} 29. Qc2 {[%clk
0:01:22.7]} 29... Nc7 {[%clk 0:01:04.1]} 30. Bd1 {[%clk 0:01:19.3]} 30... Ne8
{[%clk 0:01:03.4]} 31. Qg2 {[%clk 0:01:17.9]} 31... Ra7 {[%clk 0:01:00.9]} 32.
Ba4 {[%clk 0:01:17.4]} 32... Qd8 {[%clk 0:00:55.4]} 33. Nxc5 {[%clk 0:00:30.3]}
33... bxc5 {[%clk 0:00:50]} 34. Bxc6 {[%clk 0:00:30]} 34... Qb6 {[%clk
0:00:50.2]} 35. Ba4 {[%clk 0:00:28.8]} 35... Rb8 {[%clk 0:00:45.6]} 36. Rf2
{[%clk 0:00:28.9]} 36... Nc7 {[%clk 0:00:45.6]} 37. Rc2 {[%clk 0:00:28.2]} 37...
Qa6 {[%clk 0:00:34]} 38. Be1 {[%clk 0:00:26.1]} 38... Rab7 {[%clk 0:00:29]} 39.
Qd2 {[%clk 0:00:16]} 39... Bd8 {[%clk 0:00:25.4]} 40. Rb1 {[%clk 0:00:11.2]}
40... Na8 {[%clk 0:00:21.9]} 41. b3 {[%clk 0:00:08.8]} 41... Qb6 {[%clk
0:00:16.8]} 42. Rcb2 {[%clk 0:00:08.3]} 42... Nc7 {[%clk 0:00:13.6]} 43. b4
{[%clk 0:00:07.5]} 43... axb4 {[%clk 0:00:12.3]} 44. axb4 {[%clk 0:00:08.4]}
44... cxb4 {[%clk 0:00:10.6]} 45. Rxb4 {[%clk 0:00:09.3]} 45... Qa7 {[%clk
0:00:10.5]} 46. Bf2 {[%clk 0:00:02.6]} 46... Be7 {[%clk 0:00:06]} 47. Rxb7
{[%clk 0:00:01.7]} 47... Rxb7 {[%clk 0:00:06.9]} 48. Rxb7 {[%clk 0:00:02.2]}
48... Qxb7 {[%clk 0:00:07.3]} 49. Bd1 {[%clk 0:00:02.5]} 49... Bc5 {[%clk
0:00:03.8]} 50. Kg3 {[%clk 0:00:01.8]} 50... Na6 {[%clk 0:00:03.9]} 51. Bf3
{[%clk 0:00:02.1]} 51... Qb6 {[%clk 0:00:04.1]} 52. Qa2 {[%clk 0:00:02.4]} 52...
Ke7 {[%clk 0:00:02.1]} 53. Qa4 {[%clk 0:00:02.5]} 53... Nc7 {[%clk 0:00:01.9]}
54. Qa2 {[%clk 0:00:02.2]} 54... Na6 {[%clk 0:00:02.2]} 55. Kg2 {[%clk
0:00:02.6]} 55... Nc7 {[%clk 0:00:02.7]} 56. Be4 {[%clk 0:00:02.8]} 56... Na6
{[%clk 0:00:03.3]} 57. Qa4 {[%clk 0:00:03.2]} 57... Nc7 {[%clk 0:00:03.5]} 58.
Kf3 {[%clk 0:00:03.5]} 58... Na6 {[%clk 0:00:04]} 59. Bc6 {[%clk 0:00:03]} 59...
Nc7 {[%clk 0:00:04.3]} 60. Kg3 {[%clk 0:00:02]} 60... Na6 {[%clk 0:00:04.3]} 61.
Be4 {[%clk 0:00:01.7]} 61... Nc7 {[%clk 0:00:04.8]} 62. Be1 {[%clk 0:00:01.6]}
62... Na6 {[%clk 0:00:05.2]} 63. Bd2 {[%clk 0:00:02]} 63... Nc7 {[%clk
0:00:05.5]} 64. Ba5 {[%clk 0:00:02.2]} 64... Qb8 {[%clk 0:00:05]} 65. Qc6 {[%clk
0:00:02.3]} 65... Qb1 {[%clk 0:00:02.2]} 66. Qxc7+ {[%clk 0:00:02.3]} 66... Ke8
{[%clk 0:00:02.1]} 67. Bc6+ {[%clk 0:00:02.2]} 67... Kf8 {[%clk 0:00:01.1]} 68.
Qd8# {[%clk 0:00:02.4]} 1-0